bitfinex-derivatives/quotes_ETHF0:USTF0_20250212
["timestamp","ask_amount","ask_price","bid_price","bid_amount"]
[1739344802976,3.2078,2617.5,2617.3,0.4188088]
[1739344803180,6.21485608,2617.0,2616.7,3.2078]
[1739344803386,6.21485608,2617.1,2616.7,3.2078]
[1739344803587,3.2078,2618.1,2617.0,3.2078]
[1739344803783,3.2078,2618.4,2617.4,3.2078]
[1739344803989,6.21485608,2617.7,2617.1,0.6076]
[1739344804187,6.21485608,2617.4,2617.3,0.0057265]
[1739344805784,9.42265608,2617.4,2617.3,0.0057265]
[1739344805978,9.42265608,2617.4,2616.5,3.2078]
[1739344806182,6.21485608,2616.7,2616.5,3.2078]
[1739344806489,6.21485608,2616.7,2616.6,40.8]
[1739344807288,6.21485608,2616.7,2616.4,0.0057265]
[1739344807489,3.2078,2616.7,2616.4,0.0057265]
[1739344807682,6.21485608,2616.5,2616.4,0.0057265]
[1739344812386,10.53503969,2616.5,2614.6,3.399826]
[1739344812691,6.21485608,2615.4,2614.9,44.0078]
[1739344812891,6.21485608,2615.2,2614.9,40.8]
[1739344813087,3.2078,2615.8,2614.9,40.8]
[1739344813290,6.21485608,2615.6,2615.2,3.2078]
[1739344813596,6.22058258,2615.6,2615.2,3.2078]
[1739344813791,6.22058258,2615.6,2615.1,0.0057265]
[1739344813993,6.21485608,2615.5,2615.1,0.0057265]
[1739344815097,0.0057265,2615.6,2615.4,3.2078]
[1739344816193,6.22058258,2615.6,2615.5,40.8]
[1739344816386,0.0057265,2615.6,2615.5,40.8]
[1739344817394,6.22058258,2615.6,2615.5,40.8]
[1739344817795,0.0057265,2615.6,2615.5,40.8]
[1739344818296,3.2078,2616.3,2615.5,46.8]
[1739344818593,6.21485608,2616.0,2615.7,3.2078]
[1739344820391,6.21485608,2615.8,2615.6,0.5819]
[1739344821695,6.21485608,2615.8,2615.5,40.8]
[1739344822098,6.21485608,2615.6,2615.5,40.8]
[1739344823498,0.0057265,2616.1,2615.5,40.8]
[1739344823700,6.21485608,2616.0,2615.7,3.2078]
[1739344824095,6.21485608,2615.9,2615.7,3.2078]
[1739344824401,6.21485608,2615.9,2615.5,40.8]
[1739344824700,6.21485608,2615.9,2615.7,3.2078]
[1739344825196,6.21485608,2615.8,2615.7,3.2078]
[1739344825902,0.0057265,2616.1,2615.7,3.2078]
[1739344826104,6.21485608,2615.8,2615.7,3.2078]
[1739344826798,0.0057265,2616.1,2615.7,3.2078]
[1739344826996,6.22058258,2616.1,2616.0,3.2078]
[1739344828205,0.0057265,2616.1,2616.0,3.2078]
[1739344828400,3.2078,2617.2,2616.0,9.2078]
[1739344828598,6.21485608,2616.8,2616.6,3.2078]
[1739344829099,6.21485608,2616.8,2616.7,40.8]
[1739344829397,3.2078,2617.2,2616.7,40.8]
[1739344829603,6.21485608,2616.9,2616.7,40.8]
[1739344830106,0.0057265,2617.0,2616.7,40.8]
[1739344830301,6.21485608,2616.9,2616.7,40.8]
[1739344831806,0.0057265,2617.0,2616.7,40.8]
[1739344832007,0.0057265,2617.0,2616.7,44.76663188]
[1739344832209,0.0057265,2617.0,2616.9,3.2078]
[1739344832803,0.0057265,2617.0,2616.9,3.20057535]
[1739344833201,6.22058258,2617.0,2616.9,3.20057535]
[1739344833896,6.22058258,2617.0,2616.5,0.0057265]
[1739344834103,6.21485608,2616.6,2616.5,0.0057265]
[1739344834611,6.21485608,2616.6,2616.5,3.2135265]
[1739344835109,6.21485608,2616.6,2616.5,0.0057265]
[1739344835405,0.0057265,2617.0,2616.5,3.2135265]
[1739344835609,6.21485608,2616.9,2616.5,3.2135265]
[1739344835811,6.21485608,2616.7,2616.5,3.2135265]
[1739344836406,6.21485608,2616.7,2616.5,0.0057265]
[1739344839507,6.21485608,2616.7,2616.5,3.2135265]
[1739344839810,0.0057265,2617.0,2616.6,0.76446]
[1739344840012,6.21485608,2616.9,2616.6,0.76446]
[1739344840209,6.21485608,2616.9,2616.8,3.2078]
[1739344840411,6.21485608,2616.9,2616.8,3.9722]
[1739344840613,6.21485608,2616.9,2616.8,3.2078]
[1739344840914,0.0057265,2617.0,2616.8,3.9722]
[1739344841216,0.0057265,2617.0,2616.8,3.2078]
[1739344841607,0.0057265,2617.0,2616.9,0.76437]
[1739344841914,0.0057265,2617.0,2616.8,3.2078]
[1739344842311,0.0057265,2617.0,2616.8,3.97219]
[1739344842709,0.0057265,2617.0,2616.8,3.2078]
[1739344843315,0.0057265,2617.0,2616.9,40.8]
[1739344843519,6.21485608,2616.9,2616.5,0.0057265]
[1739344843712,6.21485608,2616.6,2616.5,0.0057265]
[1739344844405,9.42265608,2616.6,2615.4,7.3658273]
[1739344844709,6.21485608,2616.0,2615.6,3.2078]
[1739344845014,3.2135265,2617.0,2615.9,3.2078]
[1739344845321,6.21485608,2616.6,2616.3,3.2078]
[1739344845720,6.21485608,2616.6,2616.3,7.17443188]
[1739344846018,0.0057265,2617.0,2616.3,7.17443188]
[1739344846209,0.0057265,2617.0,2616.6,3.2078]
[1739344846210,6.21485608,2616.8,2616.6,3.2078]
[1739344846717,6.21485608,2616.8,2616.3,7.17443188]
[1739344847009,6.21485608,2616.5,2616.3,3.2078]
[1739344847215,6.21485608,2616.4,2616.3,3.2078]
[1739344848423,0.5847,2616.9,2616.4,0.76452]
[1739344848613,0.5847,2616.9,2616.6,3.2078]
[1739344848814,6.21485608,2616.7,2616.3,3.2078]
[1739344849015,6.21485608,2616.5,2616.3,3.2078]
[1739344849213,6.21485608,2616.4,2616.3,3.2078]
[1739344855523,6.21485608,2616.4,2616.3,3.97235]
[1739344855718,6.21485608,2616.4,2616.3,3.2078]
[1739344856121,6.21485608,2616.4,2616.3,3.97235]
[1739344857620,6.21485608,2616.4,2616.3,3.2078]
[1739344857923,6.21485608,2616.4,2616.3,3.97235]
[1739344858418,0.0057265,2617.0,2616.3,3.97235]
[1739344858419,0.0057265,2617.0,2616.4,0.76452]
[1739344858621,6.21485608,2616.7,2616.6,3.2078]
[1739344858825,6.21485608,2616.5,2616.3,7.74833188]
[1739344859124,6.21485608,2616.5,2616.3,8.51286188]
[1739344859425,6.21485608,2616.5,2616.3,7.74833188]
[1739344859618,6.21485608,2616.5,2616.3,8.70720187]
[1739344859818,6.21485608,2616.5,2616.3,7.94267187]
[1739344860024,0.0057265,2617.0,2616.3,7.94267187]
[1739344860222,6.21485608,2616.7,2616.6,3.97226]
[1739344860421,6.21485608,2616.7,2616.6,3.2078]
[1739344860628,0.0057265,2617.0,2616.6,7.17443188]
[1739344860825,6.22058258,2617.0,2616.9,7.17443188]
[1739344861020,6.22058258,2617.0,2616.9,7.93880188]
[1739344861722,6.22058258,2617.0,2616.9,7.17443188]
[1739344863021,6.22058258,2617.0,2616.9,3.2078]
[1739344864726,6.22058258,2617.0,2616.4,3.2078]
[1739344865020,6.21485608,2616.5,2616.4,3.2078]
[1739344867326,6.21485608,2616.5,2616.2,0.0057265]
[1739344867524,6.21485608,2616.3,2616.2,0.0057265]
[1739344870432,6.06276909,2616.3,2615.1,7.17443188]
[1739344870731,6.21485608,2615.3,2615.2,40.8]
[1739344871431,6.21485608,2615.3,2615.1,7.17443188]
[1739344871823,6.21485608,2615.3,2615.1,44.0078]
[1739344872222,0.0057265,2615.5,2615.1,44.0078]
[1739344872430,6.21485608,2615.2,2615.1,44.0078]
[1739344873331,6.21485608,2615.2,2615.1,3.2078]
[1739344874533,6.21485608,2615.2,2615.0,0.0057265]
[1739344874835,6.21485608,2615.1,2615.0,0.0057265]
[1739344876335,6.21485608,2615.1,2615.0,40.8057265]
[1739344883235,6.21485608,2615.1,2615.0,0.0057265]
[1739344883836,12.21485608,2615.1,2614.1,4.86167342]
[1739344884034,6.21485608,2614.3,2614.1,4.86167342]
[1739344885043,6.21485608,2614.3,2614.2,4.73179188]
[1739344885236,6.21485608,2614.3,2614.2,3.96663188]
[1739344887037,6.21485608,2614.3,2614.1,8.06947342]
[1739344887242,6.21485608,2614.3,2614.1,4.86167342]
[1739344887546,3.2078,2614.5,2614.1,4.86167342]
[1739344887547,6.21485608,2614.2,2614.1,4.86167342]
[1739344887945,6.21485608,2614.2,2613.9,3.97051334]
[1739344888142,6.21485608,2614.0,2613.9,3.97051334]
[1739344890539,6.21485608,2614.0,2613.9,0.00388146]
[1739344891939,3.2078,2614.5,2613.9,3.97051334]
[1739344892141,6.21485608,2614.1,2613.9,3.97051334]
[1739344892437,6.21485608,2614.2,2613.9,4.73575334]
[1739344892637,6.21485608,2614.3,2613.9,3.97051334]
[1739344892839,6.21485608,2614.2,2614.0,40.8]
[1739344893544,3.2078,2614.8,2614.1,3.2078]
[1739344893840,6.21485608,2614.3,2613.9,0.25953753]
[1739344894045,6.21485608,2614.2,2613.9,0.25953753]
[1739344894244,6.21485608,2614.2,2614.0,40.8]
[1739344895550,6.21485608,2614.1,2614.0,40.8]
[1739344897052,9.42265608,2614.1,2613.9,0.00388146]
[1739344897241,6.21485608,2614.0,2613.9,0.00388146]
[1739344900544,3.2078,2614.4,2613.9,0.76911146]
[1739344900754,6.21485608,2614.1,2613.9,0.76913146]
[1739344901244,3.2078,2614.7,2614.0,3.973]
[1739344901439,6.21485608,2614.2,2614.0,3.973]
[1739344901745,3.55373106,2615.1,2614.1,3.23053106]
[1739344901746,6.21485608,2614.3,2614.1,3.23053106]
[1739344901945,3.2078,2615.0,2614.1,3.23053106]
[1739344901946,6.21485608,2614.6,2614.1,3.23053106]
[1739344902247,6.21485608,2614.6,2614.4,3.23053106]
[1739344902444,6.21485608,2614.6,2614.5,1.178]
[1739344904952,6.21485608,2614.6,2614.5,1.37256362]
[1739344908758,6.21485608,2614.6,2614.5,0.19456362]
[1739344910551,6.21485608,2614.6,2614.1,4.36303106]
[1739344910752,6.21485608,2614.2,2614.1,1.1325]
[1739344910958,6.21485608,2614.2,2613.8,6.63440235]
[1739344911158,6.21485608,2614.0,2613.8,6.63440235]
[1739344912256,3.2078,2614.4,2613.8,7.39966235]
[1739344912454,6.21485608,2614.2,2614.1,3.23053106]
[1739344913856,3.2078,2614.7,2614.1,6.43833106]
[1739344914058,6.21485608,2614.4,2614.2,0.5522]
[1739344914257,6.21485608,2614.4,2614.2,3.76]
[1739344914560,6.21485608,2614.4,2614.3,40.8]
[1739344915365,6.21485608,2614.4,2614.2,3.2078]
[1739344915555,6.21485608,2614.3,2614.2,3.2078]
[1739344916256,6.21485608,2614.3,2613.9,0.00388146]
[1739344916462,6.21485608,2614.1,2613.9,0.00388146]
[1739344916662,6.21485608,2614.1,2614.0,40.8]
[1739344917962,6.21485608,2614.1,2613.9,0.00388146]
[1739344918164,6.21485608,2614.0,2613.9,0.00388146]
[1739344919163,3.2078,2614.1,2613.1,0.19488889]
[1739344919363,3.2078,2613.7,2613.1,0.19488889]
[1739344920364,3.21353789,2613.7,2613.1,0.19488889]
[1739344923163,0.5933,2613.6,2613.1,0.19488889]
[1739344923556,0.5933,2613.6,2613.2,40.8]
[1739344923953,3.21353789,2613.7,2613.2,40.8]
[1739344924762,3.21353789,2613.7,2613.2,41.405]
[1739344926861,3.21353789,2613.7,2613.2,44.63553106]
[1739344927068,3.21353789,2613.7,2613.3,0.6063]
[1739344929067,3.21353789,2613.7,2613.3,40.8]
[1739344930463,3.21353789,2613.7,2613.2,0.605]
[1739344930866,3.21353789,2613.7,2613.2,41.405]
[1739344931673,3.21353789,2613.7,2613.2,44.63553106]
[1739344932270,3.21353789,2613.7,2613.3,3.2078]
[1739344932466,3.21353789,2613.7,2613.5,3.23053106]
[1739344933164,3.21353789,2613.7,2613.4,0.5821]
[1739344933364,3.21353789,2613.7,2613.2,41.405]
[1739344933975,3.21353789,2613.7,2613.2,0.605]
[1739344934467,3.21353789,2613.7,2613.1,0.19488889]
[1739344934672,3.21353789,2613.7,2613.1,0.80138889]
[1739344935170,3.21353789,2613.7,2613.2,3.83913106]
[1739344936971,3.21353789,2613.7,2613.2,0.6086]
[1739344937170,3.21353789,2613.7,2613.5,3.23053106]
[1739344940376,0.00573789,2613.7,2613.5,3.23053106]
[1739344940573,0.00573789,2613.7,2613.6,40.8]
[1739344940776,3.2078,2614.1,2613.6,44.0078]
[1739344941075,3.2078,2614.1,2613.8,3.23053106]
[1739344941876,3.7807,2614.4,2613.8,3.99579106]
[1739344942077,0.00573789,2614.2,2613.8,3.23053106]
[1739344944480,0.00573789,2614.2,2614.0,0.18927239]
[1739344946282,3.2078,2614.1,2614.0,0.18927239]
[1739344948281,14.36233106,2614.1,2613.7,0.00573789]
[1739344948480,6.43833106,2613.8,2612.4,1.1876]
[1739344948683,3.2078,2613.2,2612.5,40.98661857]
[1739344949076,3.2078,2613.2,2612.5,44.21714963]
[1739344950385,3.2078,2612.9,2612.4,1.1876]
[1739344950580,3.2078,2612.9,2612.3,8.39847611]
[1739344950777,0.6015,2612.8,2612.4,40.8]
[1739344951379,0.6015,2612.8,2612.3,3.2078]
[1739344951880,0.6015,2612.8,2612.3,44.0078]
[1739344952187,0.6015,2612.8,2612.3,3.2078]
[1739344952589,3.2078,2612.6,2611.9,1.1136]
[1739344952779,3.2078,2612.6,2612.0,40.8]
[1739344961087,5.12953789,2612.9,2612.0,44.0078]
[1739344961384,3.21353789,2612.9,2612.0,44.0078]
[1739344961582,5.12753789,2612.9,2612.0,44.0078]
[1739344965194,3.2078,2612.8,2612.0,44.0078]
[1739344965489,1.91973789,2612.9,2612.0,40.8]
[1739344965788,0.00573789,2612.9,2612.3,3.2078]
[1739344965987,0.00573789,2612.9,2612.5,3.23053106]
[1739344966188,0.00573789,2612.9,2612.6,0.6076]
[1739344966389,0.00573789,2612.9,2612.6,41.989]
[1739344966584,0.00573789,2612.9,2612.6,1.189]
[1739344966884,3.2078,2612.7,2612.6,1.189]
[1739344967088,3.2078,2612.7,2612.6,41.989]
[1739344967792,3.2078,2612.7,2612.6,1.189]
[1739344969886,3.2078,2612.7,2612.3,40.8]
[1739344970488,3.2078,2612.7,2612.2,3.54989908]
[1739344970687,3.2078,2612.4,2611.8,0.19324114]
[1739344970891,3.2078,2612.4,2611.9,1.1228]
[1739344975694,3.2078,2612.4,2611.9,4.35333106]
[1739344976491,3.2078,2612.4,2612.0,40.8]
[1739344976793,3.2078,2612.4,2612.1,0.5685]
[1739344980794,3.2078,2612.7,2612.2,3.23053106]
[1739344980991,3.2078,2612.7,2612.3,40.8]
[1739344983695,0.00573789,2612.9,2612.5,3.23053106]
[1739344983996,0.00573789,2612.9,2612.6,0.5888]
[1739344984204,0.00573789,2612.9,2612.6,1.1995]
[1739344985601,0.00573789,2612.9,2612.6,1.39328389]
[1739344986504,0.00573789,2612.9,2612.6,42.19328389]
[1739344987209,0.00573789,2612.9,2612.6,1.39328389]
[1739344993208,0.00573789,2612.9,2612.7,40.8]
[1739344994709,0.00573789,2612.9,2612.5,0.00363121]
[1739344996812,0.00573789,2612.9,2612.5,3.23416227]
[1739344997916,0.00573789,2612.9,2612.8,3.23053106]
[1739344998211,3.2078,2613.4,2612.8,3.99608106]
[1739344998411,3.2078,2613.4,2613.1,3.23053106]
[1739344998607,3.2078,2613.4,2612.8,4.97383106]
[1739344999207,3.21353789,2613.4,2612.9,40.8]
[1739345000109,3.21353789,2613.4,2612.8,4.38876895]
[1739345000709,3.21353789,2613.4,2612.9,40.8]
[1739345000917,3.21353789,2613.4,2613.1,3.23053106]
[1739345001116,0.00573789,2613.4,2613.1,3.23053106]
[1739345001313,0.00573789,2613.4,2613.2,0.5908]
[1739345002107,0.00573789,2613.4,2613.3,0.5863]
[1739345010516,3.21353789,2613.4,2612.8,7.03236895]
[1739345010720,3.21353789,2613.4,2612.8,7.61246895]
[1739345010920,3.21353789,2613.4,2612.9,40.8]
[1739345011423,0.00573789,2613.4,2612.9,41.56554]
[1739345011625,0.00573789,2613.4,2613.0,0.56623648]
[1739345012223,3.21353789,2613.4,2612.9,40.8]
[1739345013738,0.00573789,2613.4,2612.9,40.8]
[1739345016035,0.00573789,2613.4,2613.1,6.43833106]
[1739345016238,0.00573789,2613.4,2613.2,0.5881]
[1739345016633,0.00573789,2613.4,2613.3,0.5889]
[1739345020844,0.00573789,2613.4,2612.9,40.8]
[1739345021039,0.00573789,2613.4,2612.9,41.3546]
[1739345021245,3.21353789,2613.4,2612.9,41.3546]
[1739345023239,3.2078,2613.0,2612.9,40.8]
[1739345023543,5.0568,2613.0,2612.8,0.00573789]
[1739345026346,1.849,2613.0,2612.8,0.00573789]
[1739345028140,3.2078,2612.9,2612.8,0.00573789]
[1739345028948,3.27065389,2612.9,2612.8,0.00573789]
[1739345029144,3.27065328,2612.9,2612.8,0.00573789]
[1739345029342,3.2078,2612.9,2612.8,0.00573789]
[1739345033049,3.2078,2612.9,2612.8,40.80573789]
[1739345034853,3.2078,2612.9,2612.8,0.00573789]
[1739345044455,3.27065172,2612.9,2612.8,0.00573789]
[1739345044760,3.2706511,2612.9,2612.8,0.00573789]
[1739345048257,5.0826511,2612.9,2612.8,0.00573789]
[1739345048454,5.0198,2612.9,2612.8,0.00573789]
[1739345049852,5.08265158,2612.9,2612.8,0.00573789]
[1739345051158,5.0198,2612.9,2612.8,0.00573789]
[1739345056757,3.2078,2612.9,2612.8,0.00573789]
[1739345057055,5.0048,2612.9,2612.8,0.00573789]
[1739345057459,5.0048,2612.9,2612.8,40.80573789]
[1739345057663,5.0048,2612.9,2612.8,0.00573789]
[1739345058057,5.0676518,2612.9,2612.8,0.00573789]
[1739345058261,5.0048,2612.9,2612.8,0.00573789]
[1739345058559,5.0014872,2612.9,2612.8,0.00573789]
[1739345059561,3.2673399,2612.9,2612.8,0.00573789]
[1739345059860,3.2044872,2612.9,2612.8,0.00573789]
[1739345060160,3.26733944,2612.9,2612.8,0.00573789]
[1739345060362,3.2044872,2612.9,2612.8,0.00573789]
[1739345063670,3.2078,2612.9,2612.8,0.00573789]
[1739345064561,0.00573789,2613.4,2612.8,0.00573789]
[1739345064767,0.00573789,2613.4,2613.1,3.2078]
[1739345064968,0.00573789,2613.4,2613.2,1.1451]
[1739345066369,3.23626895,2613.4,2613.2,0.5904]
[1739345066566,3.81596895,2613.4,2612.9,0.5904]
[1739345066872,0.06284311,2613.3,2612.9,0.5904]
[1739345067072,3.81596895,2613.4,2612.9,0.5904]
[1739345067972,3.81596895,2613.4,2613.0,0.5524]
[1739345069477,0.06284281,2613.3,2613.0,0.5524]
[1739345069974,3.2078,2613.2,2613.0,0.5524]
[1739345073077,3.2078,2613.2,2613.1,0.5524]
[1739345073474,0.00573789,2613.4,2613.1,0.5524]
[1739345076680,0.00573789,2613.4,2613.2,1.54745102]
[1739345077576,0.00573789,2613.4,2613.1,0.5524]
[1739345081984,0.00573789,2613.4,2613.1,3.69541231]
[1739345086084,6.35081231,2613.2,2612.8,0.00573789]
[1739345086388,1.1617,2613.1,2612.8,0.00573789]
[1739345086685,1.7372,2613.1,2612.8,0.00573789]
[1739345090192,3.2078,2613.0,2612.8,0.00573789]
[1739345090690,0.5543,2613.1,2612.8,0.00573789]
[1739345090883,0.5543,2613.1,2612.8,0.57483789]
[1739345091391,0.5543,2613.1,2612.9,0.5905]
[1739345091591,0.5543,2613.1,2613.0,0.6027]
[1739345095393,4.98653789,2613.4,2613.0,0.6027]
[1739345096892,3.21353789,2613.4,2613.0,0.6027]
[1739345097191,0.00573789,2613.4,2613.1,3.2078]
[1739345101296,0.00573789,2613.4,2613.2,40.8]
[1739345101702,0.00573789,2613.4,2613.3,0.6061]
[1739345101903,0.00573789,2613.4,2613.0,0.92535705]
[1739345102103,0.00573789,2613.4,2613.1,0.6061]
[1739345102405,0.00573789,2613.4,2613.2,40.8]
[1739345104302,0.00573789,2613.4,2613.3,0.5791]
[1739345105504,0.6098,2613.9,2613.3,3.72211231]
[1739345105696,4.9628,2614.1,2613.4,3.2078]
[1739345105897,4.9628,2614.1,2613.5,0.5771]
[1739345106096,4.9628,2614.1,2613.6,40.8]
[1739345106706,3.21353789,2614.1,2613.6,40.8]
[1739345107205,0.6034,2614.0,2613.6,40.8]
[1739345107900,0.5906,2613.9,2613.6,40.8]
[1739345108294,3.21353789,2614.1,2613.6,40.8]
[1739345108498,0.00573789,2614.1,2613.6,43.94301231]
[1739345109914,0.00573789,2614.1,2613.8,3.2078]
[1739345110205,0.00573789,2614.1,2613.9,1.1682]
[1739345110406,0.00573789,2614.1,2614.0,0.5887]
[1739345112906,3.2078,2614.4,2614.0,0.5887]
[1739345113408,3.14301231,2614.7,2614.1,3.2078]
[1739345114008,3.1487502,2614.7,2614.1,3.21353789]
[1739345116114,0.00573789,2614.7,2614.1,3.21353789]
[1739345117214,0.00573789,2614.7,2614.2,3.14301231]
[1739345117715,0.00573789,2614.7,2614.4,3.2078]
[1739345117914,0.00573789,2614.7,2614.5,1.1399]
[1739345118412,0.00573789,2614.7,2614.5,4.28291231]
[1739345121526,8.09781231,2615.3,2614.5,4.28291231]
[1739345121727,4.9548,2615.3,2614.5,4.59238225]
[1739345122822,0.00573789,2615.2,2614.5,4.59238225]
[1739345128319,0.00573789,2615.2,2614.8,3.14301231]
[1739345128519,0.00573789,2615.2,2614.9,0.5958]
[1739345128724,0.00573789,2615.2,2615.1,3.14301231]
[1739345128919,0.00573789,2615.2,2615.1,43.94301231]
[1739345129115,1.737,2615.7,2615.1,40.8]
[1739345129314,4.8982,2615.9,2615.1,41.3593]
[1739345129315,1.743,2615.8,2615.1,41.3593]
[1739345129626,9.78421231,2615.9,2615.1,44.50231231]
[1739345130121,0.06277565,2615.8,2615.1,44.50231231]
[1739345130316,0.06851354,2615.8,2615.1,44.69256505]
[1739345130519,0.00573789,2615.8,2615.1,44.69256505]
[1739345130719,0.00573789,2615.8,2615.1,41.54955274]
[1739345131224,0.00573789,2615.8,2615.1,41.86255314]
[1739345131824,1.74573789,2615.8,2615.1,41.86255314]
[1739345132722,0.00573789,2615.8,2615.1,41.86255314]
[1739345132923,1.74373789,2615.8,2615.1,41.86255314]
[1739345133917,3.2078,2615.5,2615.0,0.5762]
[1739345134227,1.1378,2615.4,2615.0,0.5762]
[1739345134727,1.7125,2615.4,2615.0,0.5762]
[1739345135116,1.1378,2615.4,2615.0,0.5762]
[1739345135425,0.5747,2615.7,2615.0,0.5762]
[1739345135624,0.5922,2615.7,2615.1,3.14301231]
[1739345136830,4.95153789,2615.8,2615.1,3.14301231]
[1739345137326,3.21353789,2615.8,2615.1,3.14301231]
[1739345137928,3.21353789,2615.8,2615.2,0.189072]
[1739345138122,3.21353789,2615.8,2615.3,0.5577]
[1739345138430,3.21353789,2615.8,2615.4,3.14301231]
[1739345138631,3.21353789,2615.8,2615.5,0.5839]
[1739345142822,0.00573789,2615.8,2615.5,0.5839]
[1739345143425,0.00573789,2615.8,2615.6,3.2078]
[1739345143825,0.00573789,2615.8,2615.7,0.6086]
[1739345144129,0.00573789,2615.8,2615.5,0.5839]
[1739345144430,0.00573789,2615.8,2615.7,0.5762]
[1739345146629,0.00573789,2615.8,2615.5,0.5839]
[1739345148633,3.21353789,2615.8,2615.4,0.00573789]
[1739345148933,1.7217,2615.7,2615.4,0.00573789]
[1739345149331,1.1455,2615.7,2615.4,0.00573789]
[1739345150328,3.21353789,2615.8,2615.4,0.00573789]
[1739345161634,3.2078,2615.5,2615.4,0.00573789]
[1739345162632,3.27058629,2615.5,2615.4,0.00573789]
[1739345162838,3.2078,2615.5,2615.4,0.00573789]
[1739345163940,3.21353789,2615.8,2615.4,0.00573789]
[1739345164246,3.21353789,2615.8,2615.4,0.60253789]
[1739345164445,3.21353789,2615.8,2615.4,1.17633789]
[1739345164644,3.21353789,2615.8,2615.6,3.14301231]
[1739345164944,3.21353789,2615.8,2615.7,0.5666]
[1739345165147,3.21353789,2615.8,2615.7,41.3666]
[1739345166445,3.21353789,2615.8,2615.7,0.5666]
[1739345167645,0.00573789,2615.8,2615.7,0.5666]
[1739345170641,0.00573789,2615.8,2615.7,4.0811756]
[1739345171038,4.9268,2616.4,2615.7,4.0811756]
[1739345171341,3.8067,2616.4,2615.9,3.14301231]
[1739345171547,3.8067,2616.4,2616.0,0.56]
[1739345176347,3.2078,2616.4,2616.0,0.56]
[1739345176547,3.2078,2616.4,2616.2,3.14301231]
[1739345176746,3.2078,2616.4,2616.3,0.5593]
[1739345176950,3.2078,2616.4,2616.3,1.111]
[1739345181554,0.00382528,2616.5,2616.3,1.111]
[1739345181759,3.2078,2616.9,2616.3,4.3188]
[1739345182053,3.2078,2616.9,2616.6,3.14301231]
[1739345182250,0.5842,2617.0,2616.7,1.1505]
[1739345182460,1.1883,2617.0,2616.7,1.1505]
[1739345182754,3.2078,2616.9,2616.3,3.70231231]
[1739345182948,3.2078,2616.9,2616.4,1.1505]
[1739345184257,3.2078,2616.9,2616.3,3.14301231]
[1739345184452,3.2078,2616.9,2616.4,1.2029]
[1739345185554,3.2078,2616.9,2616.5,0.19303667]
[1739345186950,3.2078,2616.9,2616.6,3.14301231]
[1739345189956,3.2078,2616.9,2616.5,0.19303667]
[1739345190257,3.8136,2616.9,2616.4,1.2029]
[1739345190457,0.5993,2616.8,2616.4,1.2029]
[1739345190651,0.5993,2616.8,2616.4,0.5925]
[1739345190954,0.5993,2616.8,2616.3,0.6102]
[1739345190955,0.5993,2616.8,2616.3,0.5815]
[1739345191148,0.5993,2616.8,2616.1,0.595]
[1739345191353,3.2078,2616.6,2616.1,0.595]
[1739345191753,0.582,2616.5,2616.1,0.595]
[1739345192659,0.6058,2616.4,2616.1,0.595]
[1739345192861,3.2078,2616.3,2615.9,1.1886]
[1739345193062,3.2078,2616.3,2615.9,0.5815]
[1739345193956,3.2078,2616.3,2616.0,3.14301231]
[1739345194162,3.2078,2616.3,2616.0,3.73761231]
[1739345194659,0.6058,2616.4,2616.0,3.73761231]
[1739345194855,0.582,2616.5,2616.0,3.73761231]
[1739345195858,0.582,2616.5,2616.0,6.94541231]
[1739345198562,3.2078,2616.6,2616.0,6.94541231]
[1739345204364,3.2078,2616.6,2616.4,0.19410679]
[1739345204758,3.2078,2616.6,2616.5,0.6097]
[1739345204957,3.2078,2616.6,2616.5,1.1726]
[1739345205360,0.5968,2616.8,2616.5,1.7273]
[1739345206464,0.5968,2616.8,2616.5,1.72416145]
[1739345209966,3.2078,2616.9,2616.5,1.72416145]
[1739345217675,3.2078,2616.9,2616.6,40.8]
[1739345218068,3.7856,2616.9,2616.5,1.16946145]
[1739345218274,3.7856,2616.9,2616.5,0.60656145]
[1739345218973,3.7856,2616.9,2616.3,0.5702]
[1739345219276,6.92861231,2616.9,2616.2,3.2078]
[1739345219574,6.92861231,2616.9,2616.3,40.8]
[1739345220772,3.7856,2616.9,2616.3,40.8]
[1739345222974,1.714,2616.8,2616.3,40.8]
[1739345223275,1.714,2616.8,2616.3,43.94301231]
[1739345224475,3.2078,2616.9,2616.3,43.94301231]
[1739345224680,3.2078,2616.9,2616.3,40.8]
[1739345227187,2.8762,2617.0,2616.3,40.8]
[1739345227377,3.2078,2616.9,2616.3,40.8]
[1739345232093,6.35081231,2616.9,2616.2,3.2078]
[1739345232695,0.06274953,2616.8,2616.2,3.2078]
[1739345233199,6.35081231,2616.9,2616.2,3.2078]
[1739345233390,0.06275066,2616.8,2616.2,3.2078]
[1739345234287,6.35081231,2616.9,2616.2,3.2078]
[1739345234495,0.06275183,2616.8,2616.2,3.2078]
[1739345236591,6.35081231,2616.9,2616.2,3.2078]
[1739345236894,1.713,2616.8,2616.2,3.2078]
[1739345240490,3.2078,2616.6,2616.2,3.2078]
[1739345241797,0.5544,2616.5,2616.2,3.2078]
[1739345243000,3.2078,2616.6,2616.2,3.2078]
[1739345243296,3.2078,2616.6,2615.9,3.52231414]
[1739345243505,3.2078,2616.0,2615.8,1.1504]
[1739345243695,4.9208,2616.0,2615.8,1.1504]
[1739345246399,1.713,2616.0,2615.8,1.1504]
[1739345248301,3.2078,2615.9,2615.5,0.5533]
[1739345248505,3.7957,2615.9,2615.6,1.1437]
[1739345250497,3.2078,2615.9,2615.6,1.1437]
[1739345252100,1.713,2616.0,2615.6,1.1437]
[1739345252491,1.714,2616.0,2615.6,1.1437]
[1739345253006,3.2078,2616.5,2615.8,3.2078]
[1739345253204,1.714,2616.4,2615.8,3.2078]
[1739345255409,3.788,2616.5,2615.8,3.2078]
[1739345255410,1.713,2616.6,2616.0,3.14301231]
[1739345255605,1.713,2616.6,2616.1,1.7681]
[1739345256511,3.2078,2616.5,2616.1,1.7681]
[1739345256905,0.6089,2616.4,2616.1,1.7681]
[1739345257715,3.2078,2616.5,2616.1,1.7681]
[1739345260311,1.713,2616.6,2616.1,1.7681]
[1739345260523,1.713,2616.6,2616.2,3.2078]
[1739345262210,1.713,2616.6,2616.1,1.7681]
[1739345262211,3.2078,2616.3,2616.1,1.7681]
[1739345265018,0.5795,2616.4,2616.1,1.7681]